[Event "EYCC O18-ch 2024"]
[Site "Prague"]
[Date "2024.08.25"]
[Round "4.15"]
[White "Andries, Alf"]
[Black "Sachilaru, Alexandru"]
[Result "0-1"]
[ECO "B90"]
[WhiteElo "2024"]
[BlackElo "2255"]
[Annotator "ChessBase"]
[PlyCount "58"]
[EventDate "2024.08.19"]
[EventType "swiss"]
[EventCountry "CZE"]
[SourceTitle "playchess.com"]
[Source "ChessBase"]
[SourceQuality "1"]
[TimeControl "5400+30"]

1. e4 {[%emt 0:00:01]} c5 {[%emt 0:00:14]} 2. Nf3 {[%emt 0:00:07]} d6 {[%emt 0:00:09]} 3. d4 {[%emt 0:00:05]} cxd4 {[%emt 0:00:07]} 4. Nxd4 {[%emt 0:00:07]} Nf6 {[%emt 0:00:09]} 5. Nc3 {[%emt 0:00:04]} a6 {[%emt 0:00:07]} 6. h3 {[%emt 0:00:03]} e5 {[%emt 0:00:38]} 7. Nf3 {[%emt 0:00:02]} Be7 {[%emt 0:01:11]} 8. g4 {[%emt 0:00:01]} O-O {[%emt 0:09:17]} 9. g5 {[%emt 0:02:15]} Ne8 {[%emt 0:02:48]} 10. Nd5 {[%emt 0:04:23]} Be6 {[%emt 0:03:20]} 11. Bc4 {[%emt 0:02:55]} Nd7 {[%emt 0:05:17]} 12. Be3 {[%emt 0:12:04]} Rc8 {[%emt 0:03:09]} 13. Bb3 {[%emt 0:03:32]} Nc5 {[%emt 0:08:05]} 14. Bxc5 {[%emt 0:04:27]} Rxc5 {[%emt 0:00:29]} 15. Qd2 {[%emt 0:04:11]} Nc7 {[%emt 0:06:37]} 16. Nxe7+ {[%emt 0:06:12]} Qxe7 {[%emt 0:00:09]} 17. O-O-O {[%emt 0:00:30]} Bxb3 {[%emt 0:03:00]} 18. axb3 {[%emt 0:00:01]} Rc6 {[%emt 0:01:32]} 19. Kb1 {[%emt 0:07:35]} Ne6 {[%emt 0:01:45]} 20. Qb4 {[%emt 0:03:19]} Qc7 {[%emt 0:02:23]} 21. Rd2 {[%emt 0:01:11]} Rc8 {[%emt 0:01:41]} 22. Rhd1 {[%emt 0:02:35]} a5 {[%emt 0:05:38]} 23. Qa3 {[%emt 0:02:24]} b5 {[%emt 0:07:56]} 24. b4 {[%emt 0:02:16]} Rxc2 {[%emt 0:05:29]} 25. Qxa5 {[%emt 0:02:05]} Rxd2 {[%emt 0:01:33]} 26. Rxd2 {[%emt 0:00:01]} Qc1+ {[%emt 0:00:26]} 27. Ka2 {[%emt 0:00:01]} Qc6 {[%emt 0:01:35]} 28. Kb3 {[%emt 0:00:26]} Ra8 {[%emt 0:01:03]} 29. Rc2 {[%emt 0:00:01]} Qb7 {[%emt 0:00:57]} 0-1

[Event "EYCC O18-ch 2024"]
[Site "Prague"]
[Date "2024.08.25"]
[Round "4.16"]
[White "Slagboom, Leandro"]
[Black "Backiel, Hubert"]
[Result "1/2-1/2"]
[ECO "A13"]
[WhiteElo "2331"]
[BlackElo "2216"]
[Annotator "ChessBase"]
[PlyCount "55"]
[EventDate "2024.08.19"]
[EventType "swiss"]
[EventCountry "CZE"]
[SourceTitle "playchess.com"]
[Source "ChessBase"]
[SourceQuality "1"]
[TimeControl "5400+30"]

1. c4 {[%emt 0:00:04]} e6 {[%emt 0:02:16]} 2. g3 {[%emt 0:00:30]} d5 {[%emt 0:00:30]} 3. Bg2 {[%emt 0:00:30]} Nf6 {[%emt 0:00:30]} 4. Nf3 {[%emt 0:00:30]} dxc4 {[%emt 0:00:30]} 5. Qa4+ {[%emt 0:00:30]} Nbd7 {[%emt 0:00:30]} 6. Qxc4 {[%emt 0:00:30]} a6 {[%emt 0:00:30]} 7. Qc2 {[%emt 0:00:30]} c5 {[%emt 0:00:30]} 8. Nc3 {[%emt 0:00:30]} Rb8 {[%emt 0:12:10]} 9. O-O {[%emt 0:00:00]} b5 {[%emt 0:00:56]} 10. d4 {[%emt 0:00:19]} Bb7 {[%emt 0:00:29]} 11. Rd1 {[%emt 0:04:41]} Rc8 {[%emt 0:01:58]} 12. dxc5 {[%emt 0:09:30]} Bxc5 {[%emt 0:00:30]} 13. a3 {[%emt 0:00:30]} O-O {[%emt 0:00:30]} 14. Bd2 {[%emt 0:02:53]} Qb6 {[%emt 0:07:17]} 15. Be1 {[%emt 0:03:39]} Qc7 {[%emt 0:26:25]} 16. Kf1 {[%emt 0:02:30]} Nb6 {[%emt 0:01:19]} 17. Qb3 {[%emt 0:03:40]} Nc4 {[%emt 0:04:35]} 18. Nd2 {[%emt 0:07:22]} h6 19. h3 {[%emt 0:00:30]} Bxg2+ {[%emt 0:09:16]} 20. Kxg2 {[%emt 0:00:27]} Qb7+ {[%emt 0:03:53]} 21. Kg1 {[%emt 0:01:38]} Ne5 {[%emt 0:02:10]} 22. Rac1 {[%emt 0:04:35]} Ba7 {[%emt 0:05:14]} 23. Qc2 {[%emt 0:04:30]} Bd4 {[%emt 0:03:27]} 24. Nb3 {[%emt 0:16:21]} Bb6 {[%emt 0:00:39]} 25. Nd2 {[%emt 0:01:52]} Bd4 {[%emt 0:00:21]} 26. Nb3 {[%emt 0:00:05]} Bb6 {[%emt 0:00:06]} 27. Nd2 {[%emt 0:00:52]} Bd4 {[%emt 0:00:04]} 28. Nb3 {[%emt 0:00:04]} 1/2-1/2

[Event "EYCC O18-ch 2024"]
[Site "Prague"]
[Date "2024.08.25"]
[Round "4.16"]
[White "Zhukovskyi, Oleksandr"]
[Black "Stevik, Patrik"]
[Result "0-1"]
[ECO "B13"]
[WhiteElo "1867"]
[BlackElo "2244"]
[Annotator "ChessBase"]
[PlyCount "82"]
[EventDate "2024.08.19"]
[EventType "swiss"]
[EventCountry "CZE"]
[SourceTitle "playchess.com"]
[Source "ChessBase"]
[SourceQuality "1"]
[TimeControl "5400+30"]

1. e4 {[%emt 0:00:02]} c6 {[%emt 0:00:20]} 2. d4 {[%emt 0:00:05]} d5 {[%emt 0:00:01]} 3. exd5 {[%emt 0:00:12]} cxd5 {[%emt 0:00:03]} 4. Bd3 {[%emt 0:00:07]} Nc6 {[%emt 0:00:04]} 5. c3 {[%emt 0:00:06]} Nf6 {[%emt 0:00:06]} 6. h3 {[%emt 0:00:55]} Qc7 {[%emt 0:05:33]} 7. Nf3 {[%emt 0:00:15]} h6 {[%emt 0:05:51]} 8. b4 {[%emt 0:11:14]} e6 {[%emt 0:03:09]} 9. b5 {[%emt 0:17:35]} Na5 {[%emt 0:01:47]} 10. Qa4 {[%emt 0:09:33]} b6 {[%emt 0:03:16]} 11. Ba3 {[%emt 0:01:46]} Bxa3 {[%emt 0:07:45]} 12. Qxa3 {[%emt 0:00:06]} Bb7 {[%emt 0:01:02]} 13. Nbd2 {[%emt 0:05:25]} Qe7 {[%emt 0:06:04]} 14. Qb4 {[%emt 0:14:45]} Qxb4 {[%emt 0:07:52]} 15. cxb4 {[%emt 0:00:07]} Nc4 {[%emt 0:00:02]} 16. Rc1 {[%emt 0:05:31]} Nd6 {[%emt 0:02:33]} 17. Ne5 {[%emt 0:01:45]} O-O {[%emt 0:02:02]} 18. g4 {[%emt 0:02:11]} a6 {[%emt 0:11:43]} 19. bxa6 {[%emt 0:00:37]} Bxa6 {[%emt 0:00:02]} 20. Bb1 {[%emt 0:05:07]} Rfc8 {[%emt 0:04:00]} 21. Nb3 {[%emt 0:13:16]} Nfe4 {[%emt 0:04:27]} 22. f3 {[%emt 0:01:18]} Rxc1+ {[%emt 0:05:22]} 23. Nxc1 {[%emt 0:00:02]} Nc3 {[%emt 0:00:11]} 24. Bc2 {[%emt 0:00:45]} Bc4 {[%emt 0:01:19]} 25. Nxc4 {[%emt 0:05:05]} dxc4 {[%emt 0:00:25]} 26. Rh2 {[%emt 0:00:10]} Ndb5 {[%emt 0:00:28]} 27. Rd2 {[%emt 0:00:34]} Kf8 {[%emt 0:01:27]} 28. a4 {[%emt 0:03:59]} Nxa4 {[%emt 0:00:28]} 29. Be4 {[%emt 0:00:14]} Rc8 {[%emt 0:02:16]} 30. Ra2 {[%emt 0:01:03]} Nac3 {[%emt 0:01:36]} 31. Ra6 {[%emt 0:00:17]} Nxe4 {[%emt 0:03:09]} 32. fxe4 {[%emt 0:00:12]} Nxd4 {[%emt 0:02:06]} 33. Rxb6 {[%emt 0:00:03]} c3 {[%emt 0:01:46]} 34. Kd1 {[%emt 0:02:17]} Ke7 {[%emt 0:04:44]} 35. Rb7+ {[%emt 0:00:21]} Kf6 {[%emt 0:01:02]} 36. e5+ {[%emt 0:00:11]} Kxe5 {[%emt 0:00:09]} 37. Rxf7 {[%emt 0:00:04]} Ke4 {[%emt 0:00:22]} 38. b5 {[%emt 0:01:12]} Ke3 {[%emt 0:02:11]} 39. b6 {[%emt 0:00:56]} Ra8 {[%emt 0:00:29]} 40. b7 {[%emt 0:00:36]} c2+ {[%emt 0:00:12]} 41. Ke1 {[%emt 0:00:27]} Ra1 {[%emt 0:00:02]} 0-1

[Event "EYCC O18-ch 2024"]
[Site "Prague"]
[Date "2024.08.25"]
[Round "4.17"]
[White "Falkevall, Axel"]
[Black "Kasipour Azbari, Seyed Arvin"]
[Result "1/2-1/2"]
[ECO "D52"]
[WhiteElo "2325"]
[BlackElo "2212"]
[Annotator "ChessBase"]
[PlyCount "76"]
[EventDate "2024.08.19"]
[EventType "swiss"]
[EventCountry "CZE"]
[SourceTitle "playchess.com"]
[Source "ChessBase"]
[SourceQuality "1"]
[TimeControl "5400+30"]

1. d4 {[%emt 0:00:09]} d5 {[%emt 0:00:27]} 2. c4 {[%emt 0:00:12]} c6 {[%emt 0:00:06]} 3. Nf3 {[%emt 0:00:04]} Nf6 4. Nc3 {[%emt 0:00:06]} e6 {[%emt 0:00:11]} 5. Bg5 {[%emt 0:00:16]} Nbd7 {[%emt 0:02:19]} 6. e3 {[%emt 0:00:27]} Qa5 {[%emt 0:00:38]} 7. Bxf6 {[%emt 0:02:16]} Nxf6 {[%emt 0:00:36]} 8. a3 {[%emt 0:00:57]} Ne4 {[%emt 0:04:23]} 9. Rc1 {[%emt 0:00:25]} Nxc3 {[%emt 0:01:40]} 10. Qd2 {[%emt 0:01:04]} dxc4 {[%emt 0:06:09]} 11. Bxc4 {[%emt 0:01:19]} Be7 {[%emt 0:17:34]} 12. Rxc3 {[%emt 0:05:06]} b5 13. Be2 {[%emt 0:07:23]} b4 {[%emt 0:14:35]} 14. Rxc6 {[%emt 0:13:29]} Bb7 15. Rc1 {[%emt 0:02:52]} O-O {[%emt 0:16:36]} 16. O-O {[%emt 0:00:53]} Rab8 {[%emt 0:03:30]} 17. Ne5 {[%emt 0:08:45]} Rfd8 {[%emt 0:03:11]} 18. Rfd1 {[%emt 0:03:56]} Bd6 {[%emt 0:09:30]} 19. axb4 {[%emt 0:11:49]} Bxb4 {[%emt 0:00:30]} 20. Qd3 {[%emt 0:00:30]} Bd6 {[%emt 0:00:30]} 21. Ra1 {[%emt 0:00:30]} Qb4 {[%emt 0:00:30]} 22. Nc4 {[%emt 0:00:30]} Bd5 {[%emt 0:00:30]} 23. Nxd6 {[%emt 0:00:30]} Qxd6 {[%emt 0:00:30]} 24. Rxa7 {[%emt 0:00:30]} Rxb2 {[%emt 0:00:30]} 25. Rc1 {[%emt 0:00:30]} Qb4 {[%emt 0:00:30]} 26. h4 {[%emt 0:00:30]} Rd2 {[%emt 0:00:30]} 27. Qb5 {[%emt 0:00:30]} Qxb5 {[%emt 0:00:30]} 28. Bxb5 {[%emt 0:00:30]} g6 {[%emt 0:00:30]} 29. Rc5 Rb8 30. f3 {[%emt 0:31:56]} Rb2 {[%emt 0:18:03]} 31. Ra5 {[%emt 0:00:51]} Rb7 {[%emt 0:00:49]} 32. e4 {[%emt 0:01:02]} Bb3 {[%emt 0:00:01]} 33. d5 {[%emt 0:03:30]} exd5 {[%emt 0:00:01]} 34. exd5 {[%emt 0:00:02]} Rd2 {[%emt 0:00:20]} 35. Ra8+ {[%emt 0:00:40]} Kg7 {[%emt 0:00:22]} 36. Rd8 {[%emt 0:00:35]} Ra7 {[%emt 0:00:12]} 37. d6 {[%emt 0:00:53]} Raa2 {[%emt 0:00:41]} 38. Rg5 {[%emt 0:02:17]} Ra1+ {[%emt 0:01:09]} 1/2-1/2

[Event "EYCC O18-ch 2024"]
[Site "Prague"]
[Date "2024.08.25"]
[Round "4.18"]
[White "Serrano Almendros, Angel"]
[Black "Shamatava, Nikolozi"]
[Result "1/2-1/2"]
[ECO "C25"]
[WhiteElo "2310"]
[BlackElo "2196"]
[Annotator "ChessBase"]
[PlyCount "102"]
[EventDate "2024.08.19"]
[EventType "swiss"]
[EventCountry "CZE"]
[SourceTitle "playchess.com"]
[Source "ChessBase"]
[SourceQuality "1"]
[TimeControl "5400+30"]

1. e4 {[%emt 0:00:03]} e5 {[%emt 0:00:07]} 2. Nc3 {[%emt 0:00:03]} Nc6 {[%emt 0:01:04]} 3. g3 {[%emt 0:05:41]} Nf6 {[%emt 0:00:39]} 4. Bg2 {[%emt 0:00:05]} Bc5 {[%emt 0:02:14]} 5. Nge2 {[%emt 0:00:09]} a6 {[%emt 0:00:32]} 6. O-O {[%emt 0:00:14]} O-O {[%emt 0:00:11]} 7. h3 {[%emt 0:04:01]} d6 {[%emt 0:07:44]} 8. Kh2 {[%emt 0:00:57]} h6 {[%emt 0:13:29]} 9. d3 {[%emt 0:02:18]} Nd4 {[%emt 0:02:04]} 10. f4 {[%emt 0:04:24]} c6 {[%emt 0:00:53]} 11. Nxd4 {[%emt 0:21:28]} Bxd4 {[%emt 0:00:45]} 12. Ne2 {[%emt 0:00:18]} Ba7 {[%emt 0:00:45]} 13. Qe1 Nh7 {[%emt 0:08:52]} 14. fxe5 {[%emt 0:06:27]} dxe5 {[%emt 0:00:08]} 15. g4 {[%emt 0:00:03]} Be6 {[%emt 0:12:56]} 16. Qg3 {[%emt 0:04:21]} Qe7 {[%emt 0:01:52]} 17. h4 {[%emt 0:03:51]} Rfd8 {[%emt 0:09:42]} 18. g5 {[%emt 0:04:53]} h5 {[%emt 0:04:14]} 19. Bh3 {[%emt 0:15:00]} Bxh3 {[%emt 0:04:02]} 20. Qxh3 {[%emt 0:00:20]} Qc5 {[%emt 0:00:43]} 21. Nc3 {[%emt 0:01:30]} b5 {[%emt 0:00:08]} 22. a3 {[%emt 0:01:51]} a5 {[%emt 0:04:51]} 23. Qg2 {[%emt 0:01:25]} Nf8 {[%emt 0:01:24]} 24. Nd1 {[%emt 0:01:42]} Ng6 {[%emt 0:02:48]} 25. Be3 {[%emt 0:00:43]} Qe7 {[%emt 0:00:31]} 26. Qg3 {[%emt 0:00:37]} Rd7 {[%emt 0:06:40]} 27. Bxa7 {[%emt 0:00:31]} Raxa7 {[%emt 0:00:06]} 28. Ne3 {[%emt 0:00:14]} Qc5 {[%emt 0:00:33]} 29. Rae1 {[%emt 0:01:36]} Nf4 {[%emt 0:02:05]} 30. Rf2 {[%emt 0:00:27]} Qd6 {[%emt 0:01:40]} 31. Nf5 {[%emt 0:02:31]} Qe6 {[%emt 0:00:05]} 32. d4 {[%emt 0:04:11]} Ng6 {[%emt 0:03:31]} 33. c3 {[%emt 0:00:01]} b4 {[%emt 0:01:02]} 34. axb4 {[%emt 0:01:46]} axb4 {[%emt 0:00:04]} 35. Qf3 {[%emt 0:00:11]} Ra2 {[%emt 0:01:56]} 36. Re3 {[%emt 0:03:00]} bxc3 {[%emt 0:01:27]} 37. bxc3 {[%emt 0:00:01]} Rda7 {[%emt 0:00:31]} 38. Kg3 {[%emt 0:01:53]} Rxf2 {[%emt 0:01:43]} 39. Qxf2 {[%emt 0:00:01]} Ra2 {[%emt 0:00:14]} 40. Re2 {[%emt 0:00:37]} Ra3 {[%emt 0:00:10]} 41. Re3 {[%emt 0:00:17]} Qc4 {[%emt 0:01:12]} 42. Nd6 {[%emt 0:01:28]} Qe6 {[%emt 0:00:05]} 43. Nf5 {[%emt 0:00:01]} Nf4 {[%emt 0:00:38]} 44. Qb2 {[%emt 0:01:57]} Rb3 {[%emt 0:01:20]} 45. Qa2 {[%emt 0:00:35]} exd4 {[%emt 0:00:45]} 46. Qa8+ {[%emt 0:00:52]} Kh7 {[%emt 0:00:01]} 47. Kxf4 {[%emt 0:03:47]} dxe3 {[%emt 0:02:17]} 48. Qf8 {[%emt 0:00:02]} Qg6 {[%emt 0:00:44]} 49. Ne7 {[%emt 0:00:03]} Qd6+ {[%emt 0:00:23]} 50. e5 {[%emt 0:00:07]} Qxe7 {[%emt 0:02:30]} 51. Qxe7 {[%emt 0:00:05]} e2 {[%emt 0:00:05]} 1/2-1/2

[Event "EYCC O18-ch 2024"]
[Site "Prague"]
[Date "2024.08.26"]
[Round "5.1"]
[White "Sokolovsky, Yahli"]
[Black "Talibov, Shiroghlan"]
[Result "1/2-1/2"]
[ECO "B90"]
[WhiteElo "2522"]
[BlackElo "2395"]
[Annotator "TA"]
[PlyCount "40"]
[EventDate "2024.08.19"]
[EventType "swiss"]
[EventCountry "CZE"]
[SourceTitle "playchess.com"]
[Source "ChessBase"]
[SourceQuality "1"]
[TimeControl "5400+30"]

{[%evp 13,40,0,18,15,11,24,10,17,22,16,12,12,16,16,9,8,15,14,19,17,34,12,8,9,2,0,0,-14,-20]} 1. e4 {[%emt 0:00:04]} c5 {[%emt 0:00:05]} 2. Nf3 {[%emt 0:00:05]} d6 {[%emt 0:00:04]} 3. d4 {[%emt 0:00:06]} cxd4 {[%emt 0:00:04]} 4. Nxd4 {[%emt 0:00:06]} Nf6 {[%emt 0:00:05]} 5. Nc3 {[%emt 0:00:08]} a6 {[%emt 0:00:03]} 6. Rg1 {[%emt 0:00:07]} e5 {[%emt 0:01:20]} 7. Nb3 {[%emt 0:00:05]} Be6 {[%emt 0:02:11]} 8. g4 {[%emt 0:00:09]} d5 {[%emt 0:00:04]} 9. exd5 {[%emt 0:00:17]} Nxd5 {[%emt 0:00:04]} 10. Nxd5 {[%emt 0:00:08]} Qxd5 {[%emt 0:00:04]} 11. Qxd5 {[%emt 0:00:21]} Bxd5 {[%emt 0:00:04]} 12. Be3 {[%emt 0:00:10]} Nc6 {[%emt 0:00:23]} 13. O-O-O {[%emt 0:00:08]} O-O-O {[%emt 0:00:04]} 14. Bb6 {[%emt 0:00:25]} Rd6 {[%emt 0:00:07]} 15. Rg3 {[%emt 0:01:03]} Be7 {[%emt 0:00:14]} 16. g5 {[%emt 0:01:37]} Be6 {[%emt 0:00:28]} 17. Nc5 {[%emt 0:20:57]} Bf5 {[%emt 0:09:12] The position is equal.} 18. Rxd6 {[%emt 0:03:10]} Bxd6 {[%emt 0:00:16]} 19. Rf3 {[%emt 0:17:41]} g6 {[%emt 0:09:48]} 20. Rc3 {[%emt 0:15:04]} e4 {[%emt 0:09:43] A rather calm draw.   Weighted Error Value: White=0.04 (flawless) /Black=0.04 (flawless) .  OK:         	White=6     	Black=7} 1/2-1/2

[Event "EYCC O18-ch 2024"]
[Site "Prague"]
[Date "2024.08.26"]
[Round "5.1"]
[White "Stevik, Patrik"]
[Black "Elmi, Saad Abobaker"]
[Result "0-1"]
[ECO "B50"]
[WhiteElo "2244"]
[BlackElo "2383"]
[Annotator "RC"]
[PlyCount "86"]
[EventDate "2024.08.19"]
[EventType "swiss"]
[EventCountry "CZE"]
[SourceTitle "playchess.com"]
[Source "ChessBase"]
[SourceQuality "1"]
[TimeControl "5400+30"]

1. e4 {[%emt 0:00:05]} c5 {[%emt 0:00:10]} 2. Nf3 {[%emt 0:00:08]} d6 {[%emt 0:00:51]} 3. Nc3 {[%emt 0:00:49]} Nf6 {[%emt 0:00:21]} 4. g3 {[%emt 0:00:04]} Nc6 {[%emt 0:01:15]} 5. Bg2 {[%emt 0:00:02]} g6 {[%emt 0:00:24]} 6. O-O {[%emt 0:00:07]} Bg7 {[%emt 0:00:05]} 7. Re1 {[%emt 0:02:21]} O-O {[%emt 0:01:07]} 8. d4 {[%emt 0:00:36]} cxd4 {[%emt 0:01:42]} 9. Nxd4 {[%emt 0:00:02]} Bg4 {[%emt 0:00:20]} 10. Nxc6 {[%emt 0:03:27]} bxc6 {[%emt 0:00:08]} 11. Qd3 {[%emt 0:01:59]} Nd7 {[%emt 0:05:40]} 12. Qf1 {[%emt 0:09:34]} Rb8 {[%emt 0:03:57]} 13. f4 {[%emt 0:03:55]} Rxb2 {[%emt 0:07:10]} 14. Bxb2 {[%emt 0:13:36]} Qb6+ {[%emt 0:00:06]} 15. Kh1 {[%emt 0:00:03]} Qxb2 {[%emt 0:00:07]} 16. Ne2 {[%emt 0:00:09]} Qxc2 {[%emt 0:01:23]} 17. Rac1 {[%emt 0:00:09]} Qxa2 {[%emt 0:00:28]} 18. Ng1 {[%emt 0:01:00]} Be6 {[%emt 0:04:58]} 19. Rxc6 {[%emt 0:06:49]} Nc5 {[%emt 0:02:51]} 20. Rc7 {[%emt 0:03:06]} Bc4 {[%emt 0:16:16]} 21. Rxa7 {[%emt 0:03:35]} Qxa7 {[%emt 0:00:15]} 22. Qxc4 {[%emt 0:00:02]} Rb8 {[%emt 0:04:03]} 23. Nh3 {[%emt 0:04:10]} Qa5 {[%emt 0:01:09]} 24. Rc1 {[%emt 0:01:09]} Rb2 {[%emt 0:04:56]} 25. e5 {[%emt 0:04:05]} Qd2 {[%emt 0:01:31]} 26. Rg1 {[%emt 0:03:22]} e6 {[%emt 0:07:45]} 27. Ng5 {[%emt 0:06:56]} Qd3 {[%emt 0:05:42]} 28. Qc1 {[%emt 0:01:42]} Qe2 {[%emt 0:01:12]} 29. exd6 {[%emt 0:01:58]} Bd4 {[%emt 0:00:15]} 30. h3 {[%emt 0:19:49]} Bxg1 {[%emt 0:00:56]} 31. Qxg1 {[%emt 0:00:02]} Qd2 {[%emt 0:00:32]} 32. Nf3 {[%emt 0:01:30]} Qxd6 {[%emt 0:00:12]} 33. Qa1 {[%emt 0:00:30]} Qb6 {[%emt 0:01:54]} 34. Qa8+ {[%emt 0:01:17]} Kg7 {[%emt 0:00:34]} 35. Ne5 {[%emt 0:00:24]} Rb1+ {[%emt 0:00:35]} 36. Kh2 {[%emt 0:00:02]} Nd3 {[%emt 0:01:05]} 37. Nf3 {[%emt 0:00:02]} Qf2 {[%emt 0:01:34]} 38. Qe4 {[%emt 0:00:26]} Ne1 {[%emt 0:01:54]} 39. Qe5+ {[%emt 0:00:43]} f6 {[%emt 0:00:11]} 40. Qc7+ {[%emt 0:00:27]} Kh6 {[%emt 0:00:09]} 41. Nxe1 {[%emt 0:00:41]} Rxe1 {[%emt 0:00:14]} 42. h4 {[%emt 0:00:05]} Re3 {[%emt 0:01:00]} 43. f5 {[%emt 0:00:05]} e5 {[%emt 0:00:10]} 0-1

[Event "EYCC O18-ch 2024"]
[Site "Prague"]
[Date "2024.08.26"]
[Round "5.2"]
[White "Macias Pino, Diego"]
[Black "Piliposyan, Robert"]
[Result "1/2-1/2"]
[ECO "C80"]
[WhiteElo "2477"]
[BlackElo "2376"]
[Annotator "TA"]
[PlyCount "25"]
[EventDate "2024.08.19"]
[EventType "swiss"]
[EventCountry "CZE"]
[SourceTitle "playchess.com"]
[Source "ChessBase"]
[SourceQuality "1"]
[TimeControl "5400+30"]

{[%evp 19,25,8,37,-45,-18,-40,-45,-50]} 1. e4 {[%emt 0:00:06]} e5 {[%emt 0:00:06]} 2. Nf3 {[%emt 0:00:04]} Nc6 {[%emt 0:00:02]} 3. Bb5 {[%emt 0:00:05][%cal Bf1b5,Bb5a4,Ba4b3][%mdl 32]} a6 {[%emt 0:00:04]} 4. Ba4 {[%emt 0:00:04]} Nf6 {[%emt 0:00:03][%cal Bg8f6,Bf6e4,Be4c5,Bc5d3,Bd3b2][%mdl 32]} 5. O-O {[%emt 0:00:04]} Nxe4 {[%emt 0:00:02]} 6. d4 {[%emt 0:00:05]} b5 {[%emt 0:00:04]} 7. Bb3 {[%emt 0:00:04]} d5 {[%emt 0:00:02]} 8. dxe5 {[%emt 0:00:05]} Be6 {[%emt 0:00:03]} 9. Be3 {[%emt 0:00:05]} Be7 {[%emt 0:10:15]} 10. c3 {[%emt 0:00:08]} Nc5 {[%emt 0:06:08]} 11. Nbd2 {[%emt 0:08:04]} (11. Bc2 $14) 11... Nd3 $15 {[%emt 0:13:25][%csl LRb2,LRe5]} 12. Bc2 {[%emt 0:08:36]} Nxb2 {[%emt 0:13:43]} 13. Qb1 {[%emt 0:01:24] Weighted Error Value: White=0.58/Black=0.07 (flawless) .  OK:         	---       	Black=1      Best:        	---       	Black=1} 1/2-1/2

[Event "EYCC O18-ch 2024"]
[Site "Prague"]
[Date "2024.08.26"]
[Round "5.2"]
[White "Karolczuk, Iwo"]
[Black "Engin, Onur Cinar"]
[Result "1/2-1/2"]
[ECO "D02"]
[WhiteElo "2356"]
[BlackElo "2215"]
[Annotator "RC"]
[PlyCount "85"]
[EventDate "2024.08.19"]
[EventType "swiss"]
[EventCountry "CZE"]
[SourceTitle "playchess.com"]
[Source "ChessBase"]
[SourceQuality "1"]
[TimeControl "5400+30"]

1. d4 {[%emt 0:01:30]} d5 {[%emt 0:00:05]} 2. Nf3 {[%emt 0:00:45]} Nf6 {[%emt 0:00:09]} 3. Bf4 {[%emt 0:00:05]} c5 {[%emt 0:01:04]} 4. e3 {[%emt 0:00:08]} cxd4 {[%emt 0:00:08]} 5. exd4 {[%emt 0:00:08]} Nc6 {[%emt 0:00:29]} 6. Nbd2 {[%emt 0:01:08]} Bf5 {[%emt 0:02:27]} 7. c3 {[%emt 0:00:36]} a6 {[%emt 0:06:10]} 8. Be2 {[%emt 0:05:05]} e6 {[%emt 0:00:40]} 9. Ne5 {[%emt 0:06:10]} Nxe5 {[%emt 0:08:49]} 10. dxe5 {[%emt 0:00:28]} Ne4 {[%emt 0:04:05]} 11. Nb3 {[%emt 0:04:30]} Be7 {[%emt 0:04:12]} 12. Nd4 {[%emt 0:07:23]} Bg6 {[%emt 0:02:37]} 13. O-O {[%emt 0:00:45]} O-O {[%emt 0:01:08]} 14. f3 {[%emt 0:11:37]} Nc5 {[%emt 0:00:25]} 15. Qd2 {[%emt 0:00:54]} Qc7 {[%emt 0:03:54]} 16. Rfe1 {[%emt 0:02:39]} b5 {[%emt 0:04:40]} 17. Kh1 {[%emt 0:02:53]} Rfc8 {[%emt 0:02:32]} 18. Bg3 {[%emt 0:05:59]} Rab8 {[%emt 0:03:25]} 19. Rac1 {[%emt 0:01:25]} Na4 {[%emt 0:04:01]} 20. a3 {[%emt 0:02:38]} Nb6 {[%emt 0:01:32]} 21. f4 {[%emt 0:02:39]} Be4 {[%emt 0:07:15]} 22. f5 {[%emt 0:11:15]} exf5 {[%emt 0:02:34]} 23. e6 {[%emt 0:00:38]} Bd6 {[%emt 0:01:36]} 24. exf7+ {[%emt 0:01:17]} Kxf7 {[%emt 0:01:24]} 25. Bxd6 {[%emt 0:02:19]} Qxd6 {[%emt 0:00:05]} 26. Nxf5 {[%emt 0:01:40]} Bxf5 {[%emt 0:00:33]} 27. Rf1 {[%emt 0:00:12]} Kg8 {[%emt 0:03:06]} 28. Rxf5 {[%emt 0:00:10]} Rf8 {[%emt 0:02:01]} 29. Rxf8+ {[%emt 0:01:30]} Rxf8 {[%emt 0:00:34]} 30. Bf3 {[%emt 0:00:58]} Qf4 {[%emt 0:04:11]} 31. Qxf4 {[%emt 0:04:45]} Rxf4 {[%emt 0:00:05]} 32. Rd1 {[%emt 0:00:13]} Kf7 {[%emt 0:01:14]} 33. Kg1 {[%emt 0:00:31]} Ke6 {[%emt 0:02:01]} 34. Kf2 {[%emt 0:01:05]} Kd6 {[%emt 0:01:05]} 35. b3 {[%emt 0:03:43]} a5 {[%emt 0:04:21]} 36. Ke3 {[%emt 0:05:28]} g5 {[%emt 0:05:01]} 37. g3 {[%emt 0:01:13]} Rf5 {[%emt 0:00:42]} 38. Be2 {[%emt 0:00:58]} a4 {[%emt 0:05:31]} 39. b4 {[%emt 0:04:29]} Re5+ {[%emt 0:01:36]} 40. Kf2 {[%emt 0:00:36]} Kc6 {[%emt 0:01:22]} 41. Bd3 {[%emt 0:01:01]} h6 {[%emt 0:00:50]} 42. h3 {[%emt 0:02:45]} Nc8 {[%emt 0:02:46]} 43. h4 {[%emt 0:02:56]} 1/2-1/2